[Event "34th MPL National U14G-ch 2022"]
[Site "Ahmedabad"]
[Date "2022.05.10"]
[Round "3.5"]
[White "Tejasvee Naresh Singh"]
[Black "Sneha Halder"]
[Result "0-1"]
[ECO "B01"]
[WhiteElo "1351"]
[BlackElo "1557"]
[Annotator "NA RC COMBH"]
[PlyCount "128"]
[EventDate "2022.05.09"]
[EventType "swiss"]
[EventCountry "IND"]
[SourceTitle "playchess.com"]
[Source "ChessBase"]
[SourceQuality "1"]
[TimeControl "5400+30"]

1. e4 {[%emt 0:00:03]} d5 {[%emt 0:00:50]} 2. exd5 {[%emt 0:00:15]} Qxd5 {[%emt 0:00:43]} 3. Nc3 {[%emt 0:00:07]} Qd8 {[%emt 0:00:14]} 4. d4 {[%emt 0:02:05]} Nf6 {[%emt 0:00:26]} 5. Nf3 {[%emt 0:00:36]} Bg4 {[%emt 0:00:57]} 6. Be2 {[%emt 0:00:59]} c6 {[%emt 0:01:10]} 7. Be3 {[%emt 0:01:25]} e6 {[%emt 0:00:35]} 8. a3 {[%emt 0:02:40]} Nbd7 {[%emt 0:10:55]} 9. h3 {[%emt 0:06:02]} Bh5 {[%emt 0:05:43]} 10. Ne5 {[%emt 0:11:46]} Bxe2 {[%emt 0:01:36]} 11. Qxe2 {[%emt 0:00:04]} Nd5 {[%emt 0:04:20]} 12. Nxd5 {[%emt 0:07:56]} cxd5 {[%emt 0:00:19]} 13. Bf4 {[%emt 0:19:09]} Qb6 {[%emt 0:07:54]} 14. c3 {[%emt 0:04:18]} Nxe5 {[%emt 0:03:29]} 15. Bxe5 {[%emt 0:00:54]} Bd6 {[%emt 0:05:33]} 16. f4 {[%emt 0:20:25]} O-O {[%emt 0:02:21]} 17. O-O {[%emt 0:10:36]} Rae8 {[%emt 0:04:00]} 18. Rae1 {[%emt 0:03:05]} f6 {[%emt 0:01:48]} 19. Bxd6 {[%emt 0:00:06]} Qxd6 {[%emt 0:00:13]} 20. Qb5 {[%emt 0:01:43]} Qc6 {[%emt 0:02:31]} 21. Qd3 {[%emt 0:03:11]} b5 {[%emt 0:00:49]} 22. Rf2 {[%emt 0:01:21]} Rf7 {[%emt 0:00:42]} 23. Rd2 {[%emt 0:00:45]} a5 {[%emt 0:00:30]} 24. Rc2 {[%emt 0:00:55]} Rfe7 {[%emt 0:00:48]} 25. Rd1 {[%emt 0:00:50]} Qb6 {[%emt 0:00:31]} 26. Kh2 {[%emt 0:00:16]} Rc8 {[%emt 0:00:59]} 27. Rdd2 {[%emt 0:01:01]} Rec7 {[%emt 0:00:41]} 28. f5 {[%emt 0:00:33]} b4 {[%emt 0:01:33]} 29. cxb4 {[%emt 0:01:00]} axb4 {[%emt 0:00:18]} 30. fxe6 {[%emt 0:00:25]} Qxe6 {[%emt 0:00:59]} 31. axb4 {[%emt 0:00:51]} Qd6+ {[%emt 0:00:08]} 32. Kh1 {[%emt 0:00:15]} Qxb4 {[%emt 0:00:13]} 33. Qf5 {[%emt 0:00:40]} Rxc2 {[%emt 0:00:21]} 34. Rxc2 {[%emt 0:00:01]} Rxc2 {[%emt 0:00:13]} 35. Qxc2 {[%emt 0:00:03]} Qxd4 {[%emt 0:00:05]} 36. Qc8+ {[%emt 0:00:29]} Kf7 {[%emt 0:00:03]} 37. Qd7+ {[%emt 0:00:30]} Kg6 {[%emt 0:00:05]} 38. Qe8+ {[%emt 0:01:15]} Kh6 {[%emt 0:00:05]} 39. Qe2 {[%emt 0:00:07]} Qc4 {[%emt 0:00:59]} 40. Qe3+ {[%emt 0:00:47]} g5 {[%emt 0:00:35]} 41. Qa3 {[%emt 0:00:30]} Kg6 {[%emt 0:02:52]} 42. Qf8 {[%emt 0:00:58]} Qc1+ {[%emt 0:04:29]} 43. Kh2 {[%emt 0:00:01]} Qxb2 {[%emt 0:00:20]} 44. Qg8+ {[%emt 0:00:20]} Kf5 {[%emt 0:00:09]} 45. Qxh7+ {[%emt 0:00:43]} Kf4 {[%emt 0:00:04]} 46. Qc7+ {[%emt 0:00:14]} Ke4 {[%emt 0:00:02]} 47. Qh7+ {[%emt 0:00:28]} f5 {[%emt 0:00:07]} 48. Qf7 {[%emt 0:00:45]} Qe5+ {[%emt 0:00:11]} 49. Kh1 {[%emt 0:00:11]} d4 {[%emt 0:00:02]} 50. Qb7+ {[%emt 0:00:17]} Ke3 {[%emt 0:00:25]} 51. Qf3+ {[%emt 0:00:26]} Kd2 {[%emt 0:00:04]} 52. Qf2+ {[%emt 0:00:16]} Kc3 {[%emt 0:00:02]} 53. Qf1 {[%emt 0:00:57]} Qe3 {[%emt 0:01:13]} 54. Qa1+ {[%emt 0:00:30]} Kc4 {[%emt 0:01:08]} 55. Qa6+ {[%emt 0:00:50]} Kd5 {[%emt 0:00:34]} 56. Qb7+ {[%emt 0:00:43]} Ke5 {[%emt 0:00:13]} 57. Qc7+ {[%emt 0:00:13]} Ke4 {[%emt 0:00:07]} 58. Qe7+ {[%emt 0:00:38]} Kd3 {[%emt 0:01:30]} 59. Qa3+ {[%emt 0:00:18]} Ke2 {[%emt 0:00:05]} 60. Qb2+ {[%emt 0:00:28]} Qd2 {[%emt 0:00:26]} 61. Qb5+ {[%emt 0:00:14]} d3 {[%emt 0:00:44]} 62. Qe5+ {[%emt 0:00:29]} Qe3 {[%emt 0:00:05]} 63. Qb2+ {[%emt 0:00:21]} d2 {[%emt 0:00:07]} 64. Qb5+ {[%emt 0:00:09]} Ke1 {[%emt 0:41:17]} 0-1

[Event "34th MPL National U14G-ch 2022"]
[Site "Ahmedabad"]
[Date "2022.05.10"]
[Round "3.6"]
[White "Falak Joni Naik"]
[Black "Charvi Patidar"]
[Result "1-0"]
[ECO "D04"]
[WhiteElo "1349"]
[BlackElo "1501"]
[Annotator "NA RC COMBH"]
[PlyCount "115"]
[EventDate "2022.05.09"]
[EventType "swiss"]
[EventCountry "IND"]
[SourceTitle "playchess.com"]
[Source "ChessBase"]
[SourceQuality "1"]
[TimeControl "5400+30"]

1. d4 {[%emt 0:00:01]} Nf6 {[%emt 0:03:14]} 2. Nf3 {[%emt 0:00:08]} d5 {[%emt 0:00:29]} 3. e3 {[%emt 0:00:06]} c5 {[%emt 0:00:04]} 4. b3 {[%emt 0:00:05]} cxd4 {[%emt 0:00:07]} 5. exd4 {[%emt 0:00:08]} Nc6 {[%emt 0:00:04]} 6. a3 {[%emt 0:00:11]} Bg4 {[%emt 0:00:20]} 7. Be2 {[%emt 0:00:32]} e6 {[%emt 0:00:46]} 8. Bb2 {[%emt 0:00:11]} Bd6 {[%emt 0:01:22]} 9. Nbd2 {[%emt 0:00:52]} O-O {[%emt 0:01:47]} 10. h3 {[%emt 0:00:34]} Bh5 {[%emt 0:00:48]} 11. c4 {[%emt 0:02:06]} dxc4 {[%emt 0:06:23]} 12. Nxc4 {[%emt 0:02:25]} Bc7 {[%emt 0:02:07]} 13. Nce5 {[%emt 0:03:16]} Ne7 {[%emt 0:03:24]} 14. g4 {[%emt 0:05:11]} Bg6 {[%emt 0:00:30]} 15. h4 {[%emt 0:06:38]} Be4 {[%emt 0:07:55]} 16. g5 {[%emt 0:05:11]} Nh5 {[%emt 0:07:30]} 17. Bd3 {[%emt 0:01:42]} Bxd3 {[%emt 0:07:18]} 18. Qxd3 {[%emt 0:05:09]} Qd5 {[%emt 0:02:40]} 19. O-O-O {[%emt 0:06:38]} Nf5 {[%emt 0:08:20]} 20. Kb1 {[%emt 0:04:16]} Rac8 {[%emt 0:03:04]} 21. Nh2 {[%emt 0:10:10]} Rfd8 {[%emt 0:08:30]} 22. Qf3 {[%emt 0:07:15]} Qxf3 {[%emt 0:00:44]} 23. Nhxf3 {[%emt 0:00:13]} Nf4 {[%emt 0:03:38]} 24. h5 {[%emt 0:03:52]} Nd5 {[%emt 0:08:27]} 25. g6 {[%emt 0:02:48]} Bxe5 {[%emt 0:07:16]} 26. gxf7+ {[%emt 0:01:35]} Kxf7 {[%emt 0:00:02]} 27. Ng5+ {[%emt 0:00:28]} Ke7 {[%emt 0:03:04]} 28. dxe5 {[%emt 0:00:43]} h6 {[%emt 0:01:18]} 29. Ne4 {[%emt 0:00:23]} Nf4 {[%emt 0:01:00]} 30. Nd6 {[%emt 0:02:30]} Rc6 {[%emt 0:03:34]} 31. Nxb7 {[%emt 0:02:09]} Rxd1+ {[%emt 0:00:20]} 32. Rxd1 {[%emt 0:00:02]} Nxh5 {[%emt 0:01:10]} 33. a4 {[%emt 0:01:11]} Rc8 {[%emt 0:03:12]} 34. Ba3+ {[%emt 0:00:46]} Ke8 {[%emt 0:00:57]} 35. Nd6+ {[%emt 0:01:11]} Nxd6 {[%emt 0:00:06]} 36. Rxd6 {[%emt 0:00:10]} Nf4 {[%emt 0:02:42]} 37. Bc1 {[%emt 0:00:25]} Ne2 {[%emt 0:00:23]} 38. Be3 {[%emt 0:00:41]} Ke7 {[%emt 0:00:53]} 39. Bxa7 {[%emt 0:01:38]} Nc3+ {[%emt 0:01:20]} 40. Kb2 {[%emt 0:27:00]} Nd5 {[%emt 0:00:52]} 41. a5 {[%emt 0:00:00]} h5 {[%emt 0:00:32]} 42. Be3 {[%emt 0:00:00]} Nxe3 {[%emt 0:02:21]} 43. fxe3 {[%emt 0:00:00]} h4 {[%emt 0:00:43]} 44. b4 {[%emt 0:00:00]} h3 {[%emt 0:00:23]} 45. a6 {[%emt 0:00:00]} g5 {[%emt 0:00:39]} 46. Rd2 {[%emt 0:00:00]} Ra8 {[%emt 0:00:34]} 47. b5 {[%emt 0:00:00]} Rb8 {[%emt 0:00:07]} 48. a7 {[%emt 0:00:00]} Rxb5+ {[%emt 0:00:18]} 49. Ka1 {[%emt 0:00:00]} Ra5+ {[%emt 0:00:20]} 50. Ra2 {[%emt 0:00:00]} Rxa7 {[%emt 0:00:18]} 51. Rxa7+ {[%emt 0:00:00]} Kf8 {[%emt 0:00:29]} 52. Rh7 {[%emt 0:00:00]} h2 {[%emt 0:00:14]} 53. Rxh2 {[%emt 0:00:00]} Kg7 {[%emt 0:00:05]} 54. Kb2 {[%emt 0:00:00]} Kg6 {[%emt 0:00:18]} 55. e4 {[%emt 0:00:00]} g4 {[%emt 0:00:08]} 56. Kc3 {[%emt 0:00:00]} Kg5 {[%emt 0:00:05]} 57. Kd4 {[%emt 0:00:00]} g3 {[%emt 0:00:09]} 58. Rh8 {[%emt 0:00:00]} 1-0

[Event "34th MPL National U14G-ch 2022"]
[Site "Ahmedabad"]
[Date "2022.05.10"]
[Round "3.7"]
[White "Arshiya Das"]
[Black "Arushi Srichandan"]
[Result "1/2-1/2"]
[ECO "C42"]
[WhiteElo "1456"]
[BlackElo "1292"]
[Annotator "NA RC COMBH"]
[PlyCount "69"]
[EventDate "2022.05.09"]
[EventType "swiss"]
[EventCountry "IND"]
[SourceTitle "playchess.com"]
[Source "ChessBase"]
[SourceQuality "1"]
[TimeControl "5400+30"]

1. e4 {[%emt 0:00:03]} e5 {[%emt 0:00:07]} 2. Nf3 {[%emt 0:00:04]} Nf6 {[%emt 0:00:04]} 3. Nxe5 {[%emt 0:00:12]} d6 {[%emt 0:00:03]} 4. Nf3 {[%emt 0:00:10]} Nxe4 {[%emt 0:00:06]} 5. Qe2 {[%emt 0:00:38]} Qe7 {[%emt 0:00:06]} 6. d3 {[%emt 0:00:25]} Nf6 {[%emt 0:00:05]} 7. Bg5 {[%emt 0:01:06]} Qxe2+ {[%emt 0:04:04]} 8. Bxe2 {[%emt 0:00:07]} Be7 {[%emt 0:00:09]} 9. Nc3 {[%emt 0:00:45]} Bf5 {[%emt 0:01:22]} 10. O-O {[%emt 0:01:15]} Nc6 {[%emt 0:02:20]} 11. Rfe1 {[%emt 0:18:48]} O-O-O {[%emt 0:02:59]} 12. Rac1 {[%emt 0:23:50]} h6 {[%emt 0:06:09]} 13. Be3 {[%emt 0:00:42]} d5 {[%emt 0:01:40]} 14. d4 {[%emt 0:04:32]} Bb4 {[%emt 0:06:35]} 15. a3 {[%emt 0:03:00]} Bxc3 {[%emt 0:00:53]} 16. bxc3 {[%emt 0:00:03]} Ne4 {[%emt 0:00:07]} 17. c4 {[%emt 0:00:59]} Nc3 {[%emt 0:02:57]} 18. cxd5 {[%emt 0:01:34]} Nxe2+ {[%emt 0:02:15]} 19. Rxe2 {[%emt 0:00:09]} Rxd5 {[%emt 0:07:44]} 20. c4 {[%emt 0:02:03]} Rdd8 {[%emt 0:01:07]} 21. d5 {[%emt 0:11:29]} Na5 {[%emt 0:01:15]} 22. Ne5 {[%emt 0:01:06]} Rhe8 {[%emt 0:02:21]} 23. Nxf7 {[%emt 0:03:11]} Rd7 {[%emt 0:00:22]} 24. Nxh6 {[%emt 0:14:57]} gxh6 {[%emt 0:00:04]} 25. Rc3 {[%emt 0:01:10]} b6 {[%emt 0:02:01]} 26. Rd2 {[%emt 0:02:30]} Nb7 {[%emt 0:02:02]} 27. f3 {[%emt 0:01:40]} h5 {[%emt 0:00:36]} 28. Kf2 {[%emt 0:01:48]} Nc5 {[%emt 0:01:55]} 29. Bxc5 {[%emt 0:00:13]} bxc5 {[%emt 0:00:03]} 30. Rb3 {[%emt 0:00:23]} Rd6 {[%emt 0:00:32]} 31. Rb5 {[%emt 0:00:41]} Bd7 {[%emt 0:01:33]} 32. Rxc5 {[%emt 0:01:07]} Ra6 {[%emt 0:00:05]} 33. d6 {[%emt 0:00:34]} c6 {[%emt 0:00:15]} 34. Rxh5 {[%emt 0:00:09]} Rxa3 {[%emt 0:00:04]} 35. h4 {[%emt 0:06:37]} 1/2-1/2

[Event "34th MPL National U14G-ch 2022"]
[Site "Ahmedabad"]
[Date "2022.05.10"]
[Round "3.8"]
[White "Shefali A N"]
[Black "Aswinika Mani R"]
[Result "0-1"]
[ECO "B52"]
[WhiteElo "1322"]
[BlackElo "1408"]
[Annotator "NA RC COMBH"]
[PlyCount "56"]
[EventDate "2022.05.09"]
[EventType "swiss"]
[EventCountry "IND"]
[SourceTitle "playchess.com"]
[Source "ChessBase"]
[SourceQuality "1"]
[TimeControl "5400+30"]

1. e4 {[%emt 0:00:03]} c5 {[%emt 0:00:16]} 2. Nf3 {[%emt 0:00:09]} d6 {[%emt 0:00:13]} 3. Bb5+ {[%emt 0:00:10]} Bd7 {[%emt 0:01:47]} 4. Bxd7+ {[%emt 0:00:24]} Qxd7 {[%emt 0:00:33]} 5. O-O {[%emt 0:00:28]} Nf6 {[%emt 0:01:28]} 6. Qe2 {[%emt 0:00:15]} e5 {[%emt 0:04:03]} 7. Rd1 {[%emt 0:00:50]} b5 {[%emt 0:02:40]} 8. c3 {[%emt 0:03:40]} Qc6 {[%emt 0:05:56]} 9. d3 {[%emt 0:07:05]} Be7 {[%emt 0:02:04]} 10. Nbd2 {[%emt 0:01:33]} O-O {[%emt 0:01:26]} 11. b3 {[%emt 0:04:33]} Nbd7 {[%emt 0:02:20]} 12. Bb2 {[%emt 0:01:23]} d5 {[%emt 0:13:23]} 13. exd5 {[%emt 0:05:12]} Nxd5 {[%emt 0:00:32]} 14. Nxe5 {[%emt 0:14:46]} Nxe5 {[%emt 0:03:04]} 15. Qxe5 {[%emt 0:00:18]} f5 {[%emt 0:19:01]} 16. Rac1 {[%emt 0:06:42]} Bd6 {[%emt 0:02:27]} 17. Qe2 {[%emt 0:01:56]} Nf4 {[%emt 0:04:53]} 18. Qf1 {[%emt 0:01:50]} Rf6 {[%emt 0:00:36]} 19. c4 {[%emt 0:09:45]} Rh6 {[%emt 0:04:30]} 20. f3 {[%emt 0:03:17]} Nxg2 {[%emt 0:01:42]} 21. Qxg2 {[%emt 0:03:58]} Rg6 {[%emt 0:00:17]} 22. Qxg6 {[%emt 0:00:06]} hxg6 {[%emt 0:00:12]} 23. cxb5 {[%emt 0:00:42]} Qc7 {[%emt 0:00:54]} 24. Nf1 {[%emt 0:00:49]} Qb7 {[%emt 0:05:22]} 25. Kg2 {[%emt 0:01:04]} Re8 {[%emt 0:00:40]} 26. a4 {[%emt 0:01:23]} Re2+ {[%emt 0:00:26]} 27. Kg1 {[%emt 0:00:28]} Qxf3 {[%emt 0:00:17]} 28. Ne3 {[%emt 0:00:37]} Bxh2# {[%emt 0:00:07]} 0-1

[Event "34th MPL National U14G-ch 2022"]
[Site "Ahmedabad"]
[Date "2022.05.10"]
[Round "4.1"]
[White "Sneha Halder"]
[Black "Mrittika Mallick"]
[Result "1/2-1/2"]
[ECO "A06"]
[WhiteElo "1557"]
[BlackElo "1982"]
[Annotator "TA"]
[PlyCount "70"]
[EventDate "2022.05.09"]
[EventType "swiss"]
[EventCountry "IND"]
[SourceTitle "playchess.com"]
[Source "ChessBase"]
[SourceQuality "1"]
[TimeControl "5400+30"]

{[%evp 9,70,2,14,-22,8,-27,-24,-27,-26,-33,-27,-31,-25,-29,-32,-34,-35,-32,0,-16,0,0,0,0,0,0,0,0,0,-20,200,203,211,207,221,220,239,223,264,201,225,202,214,171,181,126,129,129,143,119,120,61,75,71,86,0,0,0,12,0,8,0,0]} 1. b3 {[%emt 0:01:25]} d5 {[%emt 0:00:58]} 2. Bb2 {[%emt 0:04:28]} Bf5 {[%emt 0:00:46]} 3. Nf3 {[%emt 0:01:20]} e6 {[%emt 0:00:56]} 4. g3 {[%emt 0:01:42]} Nf6 {[%emt 0:01:27]} 5. Nh4 {[%emt 0:02:06]} Be4 {[%emt 0:02:11]} 6. Bg2 {[%emt 0:03:09] A06: Réti Opening: 1 Nf3 d5.} (6. f3 $5 {[%cal Rf3e4]} Bg6 7. Nxg6 hxg6 8. Bg2 $11) 6... Be7 {[%emt 0:04:09] [#]} 7. d3 $146 {[%emt 0:01:10]} ({Predecessor:} 7. f3 Bg6 8. Nxg6 hxg6 9. e4 g5 10. Qe2 Nc6 11. e5 Nh7 12. d4 Qd7 13. c3 f6 14. exf6 Bxf6 {½-½ (52) Nakamura,H (2785)-So,W (2812) Paris 2017}) 7... Bxg2 {[%emt 0:01:46]} 8. Nxg2 {[%emt 0:00:10] Black has an edge.} c5 {[%emt 0:00:59]} 9. Nd2 {[%emt 0:01:35]} Nc6 {[%emt 0:01:35]} 10. e4 {[%emt 0:01:05]} O-O {[%emt 0:05:47]} 11. O-O {[%emt 0:02:20]} b5 {[%emt 0:03:05]} 12. a4 {[%emt 0:00:50]} a6 {[%emt 1:12:51]} 13. exd5 {[%emt 0:03:09]} exd5 {[%emt 0:00:00]} 14. Ne3 {[%emt 0:01:31]} Qd7 {[%emt 0:00:00] Against Nf5} 15. Qf3 {[%emt 0:00:15]} Nd4 {[%emt 0:00:00]} 16. Bxd4 {[%emt 0:04:30]} cxd4 {[%emt 0:00:00]} 17. Nf5 {[%emt 0:00:08]} Bb4 {[%emt 0:00:00]} 18. Nb1 {[%emt 0:00:05]} Bc5 {[%emt 0:00:00]} 19. Qf4 {[%emt 0:01:40][%cal Of5g7]} Rac8 $2 {[%emt 0:00:00] [#]} (19... g6 $1 $11 {and Black has nothing to worry.} 20. Nh6+ (20. Nxd4 $2 Nh5 $19) 20... Kg7) 20. Nxg7 $1 $18 {[%emt 0:07:47][%mdl 512]} Qg4 {[%emt 0:00:00]} (20... Qc6 21. axb5) 21. Qxf6 {[%emt 0:00:49] Strongly threatening Nf5.} Qxg7 {[%emt 0:00:00]} 22. Qxa6 {[%emt 0:01:13]} bxa4 {[%emt 0:00:00]} 23. Rxa4 {[%emt 0:00:30]} Rfe8 {[%emt 0:00:00]} 24. Qb7 {[%emt 0:00:51]} Qe5 {[%emt 0:00:00]} 25. Qd7 {[%emt 0:03:26] Inhibits Qf5.} Bf8 {[%emt 0:00:00]} 26. Ra7 {[%emt 0:01:09]} Qe6 {[%emt 0:00:00] [#]} 27. Qxe6 {[%emt 0:08:22]} (27. Nd2 $1 $18) 27... fxe6 $16 {[%emt 0:00:00] [#]} 28. Ra2 $1 {[%emt 0:03:53]} Bb4 {[%emt 0:00:59] Prevents Nd2.} 29. Rd1 {[%emt 0:00:33]} e5 {[%emt 0:03:30]} 30. f3 {[%emt 0:44:19]} (30. Kg2 $16) 30... Rc6 {[%emt 0:01:17]} 31. Ra4 {[%emt 0:00:00]} Rb8 {[%emt 0:00:49]} 32. Na3 {[%emt 0:00:00]} ({White should try} 32. Rc1 $16) 32... Bxa3 $11 {[%emt 0:00:28] The position is equal.} 33. Rxa3 {[%emt 0:00:00] Hoping for Ra2.} Rxc2 {[%emt 0:00:05]} 34. Re1 {[%emt 0:00:00]} Rd2 {[%emt 0:00:35]} 35. Rxe5 {[%emt 0:00:00]} Rc8 $1 {[%emt 0:00:27] Black defended with fortune.  Weighted Error Value: White=0.20 (precise) /Black=0.21 (precise)} 1/2-1/2

[Event "34th MPL National U14G-ch 2022"]
[Site "Ahmedabad"]
[Date "2022.05.10"]
[Round "4.2"]
[White "Sachi Jain"]
[Black "Bhat Sannidhi Ramakrishna"]
[Result "0-1"]
[ECO "B01"]
[WhiteElo "1768"]
[BlackElo "1373"]
[Annotator "NA RC COMBH"]
[PlyCount "148"]
[EventDate "2022.05.09"]
[EventType "swiss"]
[EventCountry "IND"]
[SourceTitle "playchess.com"]
[Source "ChessBase"]
[SourceQuality "1"]
[TimeControl "5400+30"]

1. e4 {[%emt 0:02:26]} d5 {[%emt 0:00:10]} 2. exd5 {[%emt 0:00:23]} Qxd5 {[%emt 0:00:09]} 3. Nc3 {[%emt 0:00:06]} Qa5 {[%emt 0:00:11]} 4. g3 {[%emt 0:00:38]} Nf6 {[%emt 0:01:22]} 5. Bg2 {[%emt 0:00:07]} c6 {[%emt 0:00:54]} 6. Nge2 {[%emt 0:00:21]} Bg4 {[%emt 0:02:26]} 7. h3 {[%emt 0:00:22]} Bh5 {[%emt 0:00:55]} 8. O-O {[%emt 0:00:41]} e6 {[%emt 0:00:31]} 9. d3 {[%emt 0:00:59]} Nbd7 {[%emt 0:03:08]} 10. Bd2 {[%emt 0:00:38]} Qc7 {[%emt 0:01:19]} 11. Qe1 {[%emt 0:08:05]} Bd6 {[%emt 0:02:50]} 12. Nf4 {[%emt 0:03:40]} Bg6 {[%emt 0:02:01]} 13. a3 {[%emt 0:02:04]} O-O {[%emt 0:01:09]} 14. Kh1 {[%emt 0:10:09]} Rad8 {[%emt 0:03:58]} 15. Nfe2 {[%emt 0:04:11]} Rfe8 {[%emt 0:07:19]} 16. f4 {[%emt 0:00:49]} Nb6 {[%emt 0:11:51]} 17. g4 {[%emt 0:01:34]} Bf8 {[%emt 0:11:39]} 18. Qg3 {[%emt 0:03:04]} Nc4 {[%emt 0:07:04]} 19. Bc1 {[%emt 0:02:14]} Nd6 {[%emt 0:00:35]} 20. Qf3 {[%emt 0:01:19]} Nd5 {[%emt 0:03:49]} 21. Ne4 {[%emt 0:01:20]} f5 {[%emt 0:08:05]} 22. N4g3 {[%emt 0:05:33]} c5 {[%emt 0:04:50]} 23. g5 {[%emt 0:12:21]} Bf7 {[%emt 0:11:24]} 24. Bd2 {[%emt 0:03:05]} Ne7 {[%emt 0:06:51]} 25. Bc3 {[%emt 0:02:33]} Ng6 {[%emt 0:00:27]} 26. Be5 {[%emt 0:03:57]} Rd7 {[%emt 0:00:37]} 27. Nc3 {[%emt 0:02:10]} Nxe5 {[%emt 0:01:20]} 28. fxe5 {[%emt 0:00:12]} Nc8 {[%emt 0:00:05]} 29. Rae1 {[%emt 0:00:38]} a6 {[%emt 0:00:33]} 30. h4 {[%emt 0:10:06]} Na7 {[%emt 0:00:15]} 31. h5 {[%emt 0:01:39]} Nc6 {[%emt 0:00:13]} 32. Qe3 {[%emt 0:00:02]} Nd4 {[%emt 0:00:19]} 33. Rf2 {[%emt 0:01:04]} b5 {[%emt 0:00:30]} 34. Nd1 {[%emt 0:02:32]} b4 {[%emt 0:02:26]} 35. c3 {[%emt 0:01:13]} Nc6 {[%emt 0:02:07]} 36. axb4 {[%emt 0:03:54]} cxb4 {[%emt 0:00:08]} 37. Bf3 {[%emt 0:00:58]} Nxe5 {[%emt 0:01:29]} 38. Be2 {[%emt 0:04:53]} Bd6 {[%emt 0:00:35]} 39. Nf1 {[%emt 0:01:57]} Nc6 {[%emt 0:01:22]} 40. Rg2 {[%emt 0:01:44]} g6 {[%emt 0:01:07]} 41. Qh3 {[%emt 0:02:10]} e5 {[%emt 0:01:47]} 42. Bf3 {[%emt 0:01:15]} Ne7 {[%emt 0:00:49]} 43. Nfe3 {[%emt 0:01:36]} Bc5 {[%emt 0:00:24]} 44. hxg6 {[%emt 0:00:57]} Bxg6 {[%emt 0:00:10]} 45. Nf2 {[%emt 0:00:44]} Bxe3 {[%emt 0:00:43]} 46. Rxe3 {[%emt 0:00:15]} bxc3 {[%emt 0:00:13]} 47. bxc3 {[%emt 0:00:12]} Qxc3 {[%emt 0:00:43]} 48. Bh5 {[%emt 0:00:40]} Nd5 {[%emt 0:00:50]} 49. Bxg6 {[%emt 0:00:55]} hxg6 {[%emt 0:00:10]} 50. Rh2 {[%emt 0:00:20]} e4 {[%emt 0:00:05]} 51. Rg3 {[%emt 0:00:40]} Nf4 {[%emt 0:00:49]} 52. Qh4 {[%emt 0:00:25]} Nh5 {[%emt 0:00:20]} 53. Rgh3 {[%emt 0:00:30]} exd3 {[%emt 0:01:10]} 54. Qa4 {[%emt 0:00:21]} Qc1+ {[%emt 0:00:28]} 55. Kg2 {[%emt 0:00:34]} Nf4+ {[%emt 0:00:16]} 56. Qxf4 {[%emt 0:00:43]} Qxf4 {[%emt 0:00:07]} 57. Rh8+ {[%emt 0:00:03]} Kf7 {[%emt 0:00:10]} 58. R2h7+ {[%emt 0:00:05]} Ke6 {[%emt 0:00:08]} 59. Rxe8+ {[%emt 0:00:03]} Kd6 {[%emt 0:00:11]} 60. Rh3 {[%emt 0:00:32]} d2 {[%emt 0:01:46]} 61. Rg3 {[%emt 0:01:28]} Qxf2+ {[%emt 0:00:12]} 62. Kxf2 {[%emt 0:00:06]} d1=Q {[%emt 0:01:56]} 63. Ree3 {[%emt 0:00:10]} Qc2+ {[%emt 0:00:00]} 64. Re2 {[%emt 0:00:35]} Qc5+ {[%emt 0:00:00]} 65. Ke1 {[%emt 0:00:14]} Re7 {[%emt 0:00:00]} 66. Rd3+ {[%emt 0:00:04]} Kc6 {[%emt 0:00:00]} 67. Rxe7 {[%emt 0:00:10]} Qxe7+ {[%emt 0:00:00]} 68. Kd2 Qc5 {[%emt 0:03:00]} 69. Ke1 {[%emt 0:03:32]} Qe7+ {[%emt 0:00:00]} 70. Kd1 {[%emt 0:00:00]} Qd6 {[%emt 0:00:00]} 71. Rxd6+ {[%emt 0:00:00]} Kxd6 {[%emt 0:00:00]} 72. Ke2 {[%emt 0:00:00]} a5 {[%emt 0:00:00]} 73. Kd3 {[%emt 0:00:00]} a4 {[%emt 0:00:00]} 74. Kc4 {[%emt 0:00:00]} f4 {[%emt 0:00:00]} 0-1